bitfinex-derivatives/quotes_BNBF0:USTF0_20250507
["timestamp","ask_amount","ask_price","bid_price","bid_amount"]
[1746657437023,0.99763941,602.02,601.06,4.21574548]
[1746657437427,0.99763941,602.01,601.06,4.21574548]
[1746657437624,0.99763941,602.0,601.06,4.21574548]
[1746657438629,0.99763941,601.99,601.06,4.21574548]
[1746657439129,0.2892107,602.29,601.06,4.21574548]
[1746657439327,1.26327438,602.28,601.06,4.21574548]
[1746657439528,1.26327438,602.27,601.06,4.21574548]
[1746657439729,1.26327438,602.26,601.06,4.21574548]
[1746657439927,2.26407236,602.25,601.06,4.21574548]
[1746657440124,1.26327438,602.24,601.06,4.21574548]
[1746657440424,2.26407236,602.23,601.06,4.21574548]
[1746657440626,1.26327438,602.22,601.06,4.21574548]
[1746657440926,1.26327438,602.21,601.06,4.21574548]
[1746657441125,2.26407236,602.2,601.06,4.21574548]
[1746657441326,1.26327438,602.19,601.06,4.21574548]
[1746657441525,1.26327438,602.18,601.06,4.21574548]
[1746657441832,1.26327438,602.17,601.07,1.05493252]
[1746657442031,1.26327438,602.16,601.07,1.05493252]
[1746657442233,1.26327438,602.15,601.09,0.33272887]
[1746657442434,2.26407236,602.14,601.09,0.33272887]
[1746657442630,1.26327438,602.13,601.09,0.33272887]
[1746657442834,1.00079798,602.14,601.09,0.33272887]
[1746657442835,1.26327438,602.12,601.09,0.33272887]
[1746657443035,2.26407236,602.11,601.09,0.33272887]
[1746657443235,1.26327438,602.1,601.09,0.33272887]
[1746657443436,1.26327438,602.09,601.09,0.33272887]
[1746657443636,2.26407236,602.08,601.09,0.33272887]
[1746657443836,1.26340936,602.07,601.09,0.33272887]
[1746657444038,1.26340936,602.06,601.09,0.33272887]
[1746657444238,2.26420734,602.05,601.09,0.33272887]
[1746657444539,2.26420734,602.04,601.1,1.083]
[1746657444736,1.26340936,602.03,601.12,0.33271227]
[1746657444934,1.26340936,602.02,601.12,0.33271227]
[1746657445135,1.00079798,602.02,601.12,0.33271227]
[1746657445333,1.26428638,602.01,601.12,0.33271227]
[1746657445634,1.00079798,602.02,601.12,0.33271227]
[1746657445939,1.00079798,602.01,601.12,0.33271227]
[1746657446238,1.00079798,602.0,601.13,0.768]
[1746657446539,1.00079798,602.0,601.15,0.33269566]
[1746657446839,1.00079798,601.99,601.15,0.33269566]
[1746657447343,1.00079798,601.98,601.15,0.33269566]
[1746657447735,0.28920349,602.29,601.15,0.33269566]
[1746657447939,1.2635143,602.28,601.15,0.33269566]
[1746657448140,2.26493852,602.27,601.15,0.33269566]
[1746657448341,1.2635143,602.26,601.15,0.33269566]
[1746657448542,1.2635143,602.25,601.15,0.33269566]
[1746657448842,2.26493852,602.24,601.15,0.33269566]
[1746657449038,1.2635143,602.23,601.15,0.33269566]
[1746657449241,1.2635143,602.22,601.15,0.33269566]
[1746657449443,1.26216839,602.21,601.15,0.33269566]
[1746657449642,1.26216839,602.2,601.15,0.33269566]
[1746657449841,1.26216839,602.19,601.15,0.33269566]
[1746657450142,2.26359261,602.18,601.15,0.33269566]
[1746657450442,2.26359261,602.17,601.15,0.33269566]
[1746657450742,1.26216839,602.16,601.15,0.33269566]
[1746657450942,2.26359261,602.15,601.15,0.33269566]
[1746657451241,1.26216839,602.14,601.15,0.33269566]
[1746657451543,2.26359261,602.13,601.15,0.33269566]
[1746657451838,1.26216839,602.12,601.15,0.33269566]
[1746657452137,2.26359261,602.11,601.15,0.33269566]
[1746657452342,1.26216839,602.1,601.15,0.33269566]
[1746657452544,1.26216839,602.09,601.17,1.05493252]
[1746657452844,2.26359261,602.08,601.17,1.05493252]
[1746657453041,2.26359261,602.07,601.17,1.05493252]
[1746657453241,1.26216839,602.06,601.19,0.33267353]
[1746657453541,1.26216839,602.05,601.19,0.33267353]
[1746657453744,1.26216839,602.04,601.19,0.33267353]
[1746657453940,2.26359261,602.03,601.19,0.33267353]
[1746657454142,1.26216839,602.02,601.19,0.33267353]
[1746657454342,2.26359261,602.01,601.19,0.33267353]
[1746657454540,1.26216839,602.0,601.19,0.33267353]
[1746657454744,2.26359261,601.99,601.2,1.027]
[1746657455039,1.2630789,601.98,601.21,0.33266246]
[1746657455245,1.00142422,601.97,601.21,0.33266246]
[1746657455539,1.00142422,601.96,601.21,0.33266246]
[1746657455846,1.00142422,601.95,601.21,0.33266246]
[1746657456346,1.00142422,601.94,601.21,0.33266246]
[1746657456846,0.28920108,602.29,601.21,0.33266246]
[1746657457041,1.26258758,602.28,601.21,0.33266246]
[1746657457244,1.26258758,602.27,601.21,0.33266246]
[1746657457446,2.26421469,602.26,601.21,0.33266246]
[1746657457750,1.26258758,602.25,601.21,0.33266246]
[1746657457947,2.26421469,602.24,601.21,0.33266246]
[1746657458147,1.26258758,602.23,601.21,0.33266246]
[1746657458442,1.26258758,602.22,601.21,0.33266246]
[1746657458643,2.26362491,602.21,601.21,0.33266246]
[1746657458847,1.2619978,602.2,601.21,0.33266246]
[1746657459041,2.26362491,602.19,601.21,0.33266246]
[1746657459347,1.2619978,602.18,601.21,0.33266246]
[1746657459548,2.26362491,602.17,601.21,0.33266246]
[1746657459741,2.26362491,602.16,601.21,0.33266246]
[1746657459947,1.2619978,602.15,601.21,0.33266246]
[1746657460148,1.2619978,602.14,601.21,0.33266246]
[1746657460348,2.26362491,602.13,601.21,0.33266246]
[1746657460547,1.2619978,602.12,601.21,0.33266246]
[1746657460745,2.26362491,602.11,601.21,0.33266246]
[1746657460943,1.2619978,602.1,601.21,0.33266246]
[1746657461145,1.2619978,602.09,601.21,0.33266246]
[1746657461344,2.26362491,602.08,601.21,0.33266246]
[1746657461549,1.2619978,602.07,601.21,0.33266246]
[1746657461749,1.2619978,602.06,601.21,0.33266246]
[1746657462045,2.26362491,602.05,601.21,0.33266246]
[1746657462249,1.2619978,602.04,601.21,0.33266246]
[1746657462449,1.26235751,602.03,601.21,0.33266246]
[1746657462649,1.26235751,602.02,601.21,0.33266246]
[1746657462850,2.26398462,602.01,601.21,0.33266246]
[1746657463044,1.26235751,602.0,601.21,0.33266246]
[1746657463244,1.26235751,601.99,601.21,0.33266246]
[1746657463444,1.26235751,601.98,601.21,0.33266246]
[1746657463648,1.00162711,601.99,601.21,0.33266246]
[1746657463850,2.26347037,601.98,601.21,0.33266246]
[1746657464050,1.00162711,601.98,601.21,0.33266246]
[1746657464451,1.00162711,601.97,601.21,0.33266246]
[1746657465553,1.00162711,601.96,601.21,0.33266246]
[1746657466253,1.00162711,601.95,601.21,0.33266246]
[1746657466750,1.00162711,601.94,601.21,0.33266246]
[1746657467155,1.00162711,601.93,601.21,0.33266246]
[1746657467456,0.28919748,602.29,601.21,0.33266246]
[1746657467656,2.26337004,602.28,601.21,0.33266246]
[1746657467858,1.26188892,602.27,601.21,0.33266246]
[1746657468157,2.26336992,602.26,601.21,0.33266246]
[1746657468356,1.26188892,602.25,601.21,0.33266246]
[1746657468558,1.26188892,602.24,601.21,0.33266246]
[1746657468859,2.26336992,602.23,601.21,0.33266246]
[1746657469157,1.26188892,602.22,601.21,0.33266246]
[1746657469353,1.26188892,602.21,601.21,0.33266246]
[1746657469656,2.26336992,602.2,601.21,0.33266246]
[1746657469856,1.26188892,602.19,601.21,0.33266246]
[1746657470152,2.26336992,602.18,601.21,0.33266246]
[1746657470359,1.26188892,602.17,601.21,0.33266246]
[1746657470560,1.001481,602.18,601.21,0.33266246]
[1746657470561,1.26188892,602.16,601.21,0.33266246]
[1746657470861,2.26336992,602.15,601.21,0.33266246]
[1746657471060,1.26188892,602.14,601.21,0.33266246]
[1746657471260,2.26336992,602.13,601.21,0.33266246]
[1746657471458,1.26188892,602.12,601.21,0.33266246]
[1746657471758,1.26188892,602.11,601.21,0.33266246]
[1746657471961,2.26336992,602.1,601.21,0.33266246]
[1746657472161,1.26188892,602.09,601.21,0.33266246]
[1746657472358,1.26188892,602.08,601.21,0.33266246]
[1746657472562,1.26188892,602.07,601.21,0.33266246]
[1746657472759,1.26188028,602.06,601.21,0.33266246]
[1746657472964,1.26188028,602.05,601.21,0.33266246]
[1746657473163,1.26188028,602.04,601.21,0.33266246]
[1746657473363,1.26188028,602.03,601.21,0.33266246]
[1746657473563,1.26188028,602.02,601.21,0.33266246]
[1746657473760,1.001481,602.03,601.21,0.33266246]
[1746657473965,1.001481,602.01,601.21,0.33266246]
[1746657474165,1.26130414,602.0,601.22,0.712]
[1746657474464,2.26278514,601.99,601.23,0.33265139]
[1746657474665,1.26130414,601.98,601.23,0.33265139]
[1746657474964,1.26130414,601.97,601.23,0.33265139]
[1746657475164,1.001481,601.97,601.23,0.33265139]
[1746657475568,1.001481,601.96,601.23,0.33265139]
[1746657476060,1.001481,601.95,601.23,0.33265139]
[1746657476567,1.001481,601.94,601.23,0.33265139]
[1746657477166,1.001481,601.94,601.24,0.772]
[1746657477367,0.33180151,602.77,601.25,0.33264033]
[1746657477568,2.26570471,602.76,601.25,0.33264033]
[1746657477764,2.2655895,602.75,601.25,0.33264033]
[1746657477966,1.26340848,602.74,601.25,0.33264033]
[1746657478163,1.26340848,602.73,601.25,0.33264033]
[1746657478366,1.26340848,602.72,601.25,0.33264033]
[1746657478563,2.26570471,602.71,601.25,0.33264033]
[1746657478762,1.56853009,602.7,601.25,0.33264033]
[1746657478964,1.56853009,602.69,601.25,0.33264033]
[1746657479267,1.56853009,602.68,601.25,0.33264033]
[1746657479468,1.26340848,602.67,601.25,0.33264033]
[1746657479768,2.26570471,602.66,601.25,0.33264033]
[1746657479964,2.26570471,602.65,601.25,0.33264033]
[1746657480169,1.26340848,602.64,601.25,0.33264033]
[1746657480369,1.26340848,602.63,601.25,0.33264033]
[1746657480570,1.26340848,602.62,601.25,0.33264033]
[1746657480766,2.26570471,602.61,601.25,0.33264033]
[1746657480970,1.26340848,602.6,601.25,0.33264033]
[1746657481268,2.26557012,602.59,601.25,0.33264033]
[1746657481469,1.26327389,602.58,601.25,0.33264033]
[1746657481670,2.26557012,602.57,601.25,0.33264033]
[1746657482266,1.26327389,602.56,601.25,0.33264033]
[1746657482466,1.26327389,602.55,601.25,0.33264033]
[1746657482673,1.5683955,602.54,601.25,0.33264033]
[1746657482971,1.5683955,602.53,601.25,0.33264033]
[1746657483167,1.26327389,602.52,601.25,0.33264033]
[1746657483470,1.26327389,602.51,601.25,0.33264033]
[1746657483671,1.5683955,602.5,601.25,0.33264033]
[1746657483970,1.26327389,602.49,601.25,0.33264033]
[1746657484172,2.26557012,602.48,601.26,0.945]
[1746657484471,2.57069173,602.47,601.28,0.33262373]
[1746657484772,2.57069173,602.46,601.28,0.33262373]
[1746657484968,1.26327389,602.45,601.28,0.33262373]
[1746657485171,1.26327389,602.44,601.28,0.33262373]
[1746657485371,1.26327389,602.43,601.28,0.33262373]
[1746657485670,2.26557012,602.42,601.28,0.33262373]
[1746657485871,1.26327389,602.41,601.28,0.33262373]
[1746657486073,1.26327389,602.4,601.28,0.33262373]
[1746657486371,1.26440812,602.39,601.28,0.33262373]
[1746657486572,1.26441757,602.38,601.28,0.33262373]
[1746657486774,2.2667138,602.37,601.28,0.33262373]
[1746657487065,1.26441757,602.36,601.28,0.33262373]
[1746657487266,1.26441757,602.35,601.28,0.33262373]
[1746657487467,2.2667138,602.34,601.28,0.33262373]
[1746657487671,1.26441757,602.33,601.28,0.33262373]
[1746657487972,2.2667138,602.32,601.28,0.33262373]
[1746657488171,1.26441757,602.31,601.28,0.33262373]
[1746657488472,1.26464059,602.3,601.28,0.33262373]
[1746657488673,1.26464059,602.29,601.28,0.33262373]
[1746657488869,1.26464059,602.28,601.28,0.33262373]
[1746657489069,1.26464059,602.27,601.28,0.33262373]
[1746657489370,2.26693682,602.26,601.28,0.33262373]
[1746657489570,2.26693682,602.25,601.28,0.33262373]
[1746657489767,1.26464059,602.24,601.28,0.33262373]
[1746657489969,1.26464059,602.23,601.28,0.33262373]
[1746657490168,0.28914942,602.31,601.28,0.33262373]
[1746657490169,2.26693682,602.22,601.28,0.33262373]
[1746657490369,1.26693161,602.21,601.28,0.33262373]
[1746657490574,2.26922784,602.2,601.28,0.33262373]
[1746657490773,2.26922784,602.19,601.28,0.33262373]
[1746657490969,1.26693161,602.18,601.28,0.33262373]
[1746657491168,1.26693161,602.17,601.28,0.33262373]
[1746657491371,2.26922784,602.16,601.28,0.33262373]
[1746657491573,1.26693161,602.15,601.28,0.33262373]
[1746657491773,1.26693161,602.14,601.28,0.33262373]
[1746657491973,1.26693161,602.13,601.28,0.33262373]
[1746657492173,1.26693161,602.12,601.28,1.48962373]
[1746657492373,2.26922784,602.11,601.28,1.48962373]
[1746657492573,1.26693161,602.1,601.28,1.48962373]
[1746657492771,1.26693161,602.09,601.28,1.48962373]
[1746657492976,2.26922784,602.08,601.28,1.48962373]
[1746657493174,1.26693161,602.07,601.28,1.48962373]
[1746657493376,1.26693161,602.06,601.28,1.48962373]
[1746657493578,1.26693161,602.05,601.28,1.48962373]
[1746657493779,2.26922784,602.04,601.28,1.48962373]
[1746657494073,1.26693161,602.03,601.28,1.48962373]
[1746657494278,1.26693161,602.02,601.28,1.48962373]
[1746657494479,1.26693161,602.01,601.28,1.48962373]
[1746657494678,1.26693161,602.0,601.28,1.48962373]
[1746657494879,2.26922784,601.99,601.28,1.48962373]
[1746657495078,1.26693161,601.98,601.28,1.48962373]
[1746657495378,2.26922784,601.97,601.28,1.48962373]
[1746657495677,2.27098412,601.96,601.28,1.48962373]
[1746657495878,1.26868789,601.95,601.28,1.48962373]
[1746657496078,1.26868789,601.94,601.28,1.48962373]
[1746657496275,2.27098412,601.93,601.28,2.36162373]
[1746657496478,1.00229623,601.92,601.28,2.36162373]
[1746657496779,1.00229623,601.91,601.28,2.36162373]
[1746657496979,1.00229623,601.9,601.28,2.36162373]
[1746657497579,0.28916504,602.31,601.28,2.36162373]
[1746657497779,1.26839204,602.3,601.28,2.36162373]
[1746657497974,2.27237497,602.29,601.28,2.36162373]
[1746657498179,1.26839204,602.28,601.28,2.36162373]
[1746657498478,1.26839204,602.27,601.28,2.36162373]
[1746657498677,1.26839204,602.26,601.28,2.36162373]
[1746657498979,1.26839204,602.25,601.28,2.36162373]
[1746657499180,1.26839204,602.24,601.28,2.36162373]
[1746657499375,2.27237497,602.23,601.28,2.36162373]
[1746657499579,1.26839204,602.22,601.28,2.36162373]
[1746657499778,1.26839204,602.21,601.28,2.36162373]
[1746657499981,1.26839204,602.2,601.28,2.36162373]
[1746657500274,1.26839204,602.19,601.28,2.36162373]
[1746657500479,2.27237497,602.18,601.28,2.36162373]
[1746657500677,1.26839204,602.17,601.28,2.36162373]
[1746657500878,1.26839204,602.16,601.28,2.36162373]
[1746657501078,1.26839204,602.15,601.28,2.36162373]
[1746657501278,2.27237497,602.14,601.28,2.36162373]
[1746657501483,1.26839204,602.13,601.28,2.36162373]
[1746657501783,2.27237497,602.12,601.28,2.36162373]
[1746657501978,1.26839204,602.11,601.28,2.36162373]
[1746657502182,1.26839204,602.1,601.28,2.36162373]
[1746657502382,1.26839204,602.09,601.28,2.36162373]
[1746657502583,2.27237497,602.08,601.28,2.36162373]
[1746657502783,1.26839204,602.07,601.28,2.36162373]
[1746657502985,1.26839204,602.06,601.28,2.36162373]
[1746657503183,1.26839204,602.05,601.28,2.36162373]
[1746657503383,1.26839204,602.04,601.28,2.36162373]
[1746657503586,1.26839204,602.03,601.28,2.36162373]
[1746657503883,2.27237497,602.02,601.28,2.36162373]
[1746657504083,1.26839204,602.01,601.28,2.36162373]
[1746657504285,2.27237497,602.0,601.28,2.36162373]
[1746657504485,1.26839204,601.99,601.28,2.36162373]
[1746657504784,1.26839204,601.98,601.28,2.36162373]
[1746657504985,2.27237497,601.97,601.28,2.36162373]
[1746657505179,1.26718784,601.96,601.28,2.36162373]
[1746657505384,2.27117077,601.95,601.28,3.42162373]
[1746657505581,1.00398293,601.95,601.28,3.42162373]
[1746657505881,1.00398293,601.94,601.28,3.42162373]
[1746657506687,1.00398293,601.93,601.28,3.42162373]
[1746657507189,1.00398293,601.92,601.28,3.42162373]
[1746657507585,0.33180151,602.77,601.28,3.42162373]
[1746657507790,0.28919387,602.29,601.28,3.42162373]
[1746657507989,1.26696852,602.28,601.28,3.42162373]
[1746657508191,2.27051896,602.27,601.28,3.42162373]
[1746657508385,1.26696852,602.26,601.28,3.42162373]
[1746657508587,1.26696852,602.25,601.28,3.42162373]
[1746657508787,2.27051896,602.24,601.28,3.42162373]
[1746657508991,1.26696852,602.23,601.28,3.42162373]
[1746657509188,1.26696852,602.22,601.28,3.42162373]
[1746657509391,1.26696852,602.21,601.28,3.42162373]
[1746657509591,1.26696852,602.2,601.28,3.42162373]
[1746657509793,2.27051896,602.19,601.28,3.42162373]
[1746657509989,1.26696852,602.18,601.28,3.42162373]
[1746657510288,1.26696852,602.17,601.28,3.42162373]
[1746657510494,1.26696852,602.16,601.28,3.42162373]
[1746657510693,1.26469607,602.15,601.28,3.42162373]
[1746657510893,1.26469607,602.14,601.28,3.42162373]
[1746657511094,1.26469607,602.13,601.28,3.42162373]
[1746657511390,2.26824651,602.12,601.28,3.42162373]
[1746657511589,1.26469607,602.11,601.28,4.21862373]
[1746657511796,2.26824677,602.1,601.28,4.21862373]
[1746657511994,2.26824677,602.09,601.28,4.21862373]
[1746657512195,2.26825085,602.08,601.28,4.21862373]
[1746657512495,1.26470041,602.07,601.28,4.21862373]
[1746657512693,2.26822544,602.06,601.28,4.21862373]
[1746657512895,2.26822544,602.05,601.28,4.21862373]
[1746657513090,1.264675,602.04,601.28,4.21862373]
[1746657513398,2.26822421,602.03,601.28,4.21862373]
[1746657513697,1.00355044,602.02,601.28,4.21862373]
[1746657513896,1.26467257,602.01,601.28,4.21862373]
[1746657514198,1.26467257,602.0,601.28,4.21862373]
[1746657514397,2.26822301,601.99,601.28,4.21862373]
[1746657514597,1.26467257,601.98,601.28,4.21862373]
[1746657514797,1.00355044,601.97,601.28,4.21862373]
[1746657515298,1.00355044,601.96,601.28,4.21862373]
[1746657515898,0.28915062,602.29,601.28,4.21862373]
[1746657516099,1.26132605,602.28,601.28,4.21862373]
[1746657516293,1.26132605,602.27,601.28,4.21862373]
[1746657516495,1.26132605,602.26,601.28,4.21862373]
[1746657516699,1.26132605,602.25,601.28,4.21862373]
[1746657516898,2.26205415,602.24,601.28,4.21862373]
[1746657517094,1.26132605,602.23,601.28,4.21862373]
[1746657517300,2.26205415,602.22,601.28,4.21862373]
[1746657517594,1.26132605,602.21,601.28,4.21862373]
[1746657517798,2.26205415,602.2,601.28,4.21862373]
[1746657517998,1.26132605,602.19,601.28,4.21862373]
[1746657518198,1.0007281,602.2,601.28,4.21862373]
[1746657518199,2.26205415,602.18,601.28,4.21862373]
[1746657518395,2.26205415,602.17,601.28,4.21862373]
[1746657518599,1.26132605,602.16,601.28,4.21862373]
[1746657518799,2.26233393,602.15,601.28,4.21862373]
[1746657519000,1.26162715,602.14,601.28,4.21862373]
[1746657519300,2.26233393,602.13,601.28,4.21862373]
[1746657519501,1.26162715,602.12,601.28,4.21862373]
[1746657519800,2.26233393,602.11,601.28,4.21862373]
[1746657520002,2.26233393,602.1,601.28,4.21862373]
[1746657520198,1.26162715,602.09,601.28,4.21862373]
[1746657520398,1.26162715,602.08,601.28,4.21862373]
[1746657520599,2.26233393,602.07,601.28,4.21862373]
[1746657520803,2.26233393,602.06,601.28,4.21862373]
[1746657520999,1.26162715,602.05,601.28,4.21862373]
[1746657521199,1.26162715,602.04,601.28,4.21862373]
[1746657521401,1.00070678,602.06,601.28,4.21862373]
[1746657521601,2.26251646,602.05,601.28,4.21862373]
[1746657521802,1.26180968,602.04,601.28,4.21862373]
[1746657522002,1.00070678,602.03,601.28,4.21862373]
[1746657523003,1.00070678,602.02,601.28,4.21862373]
[1746657523404,1.00070678,602.01,601.28,4.21862373]
[1746657523807,1.00070678,602.0,601.28,4.21862373]
[1746657524405,1.00070678,601.99,601.28,4.21862373]
[1746657524808,0.28916624,602.35,601.28,4.21862373]
[1746657525006,2.26126735,602.34,601.28,4.21862373]
[1746657525206,1.26106707,602.33,601.28,4.21862373]
[1746657525505,0.33180151,602.77,601.28,4.21862373]
[1746657525506,2.26126541,602.32,601.28,4.21862373]
[1746657525707,1.26106707,602.31,601.28,4.21862373]
[1746657525902,1.26106707,602.3,601.28,4.21862373]
[1746657526099,1.26106707,602.29,601.28,4.21862373]
[1746657526405,2.26126541,602.28,601.28,4.21862373]
[1746657526605,1.26106707,602.27,601.28,4.21862373]
[1746657526806,1.26106707,602.26,601.28,4.21862373]
[1746657527007,1.26106707,602.25,601.28,4.21862373]
[1746657527307,1.26106707,602.24,601.28,4.21862373]
[1746657527505,2.26126541,602.23,601.28,4.21862373]
[1746657527705,1.26106707,602.22,601.28,4.21862373]
[1746657528006,2.26126541,602.21,601.28,4.21862373]
[1746657528206,1.26106707,602.2,601.28,4.21862373]
[1746657528407,2.26126541,602.19,601.28,4.21862373]
[1746657528606,1.26106707,602.18,601.28,4.21862373]
[1746657528809,1.26106707,602.17,601.28,4.21862373]
[1746657529010,1.26106707,602.16,601.28,4.21862373]
[1746657529207,2.26126541,602.15,601.28,4.21862373]
[1746657529506,2.26126541,602.14,601.28,4.21862373]
[1746657529704,1.26106707,602.13,601.28,4.21862373]
[1746657529906,2.26126541,602.12,601.28,4.21862373]
[1746657530103,1.26106707,602.11,601.28,4.21862373]
[1746657530306,1.26106707,602.1,601.28,4.21862373]
[1746657530507,1.26106707,602.09,601.28,4.21862373]
[1746657530807,1.00019834,602.09,601.28,4.21862373]
[1746657531006,1.00019834,602.08,601.28,4.21862373]
[1746657531405,1.00019834,602.07,601.28,4.21862373]
[1746657531607,1.00019834,602.06,601.28,4.21862373]
[1746657532911,1.00019834,602.05,601.28,4.21862373]
[1746657533310,1.00019834,602.04,601.28,4.21862373]
[1746657533513,0.28916023,602.35,601.28,4.21862373]
[1746657533703,1.25917415,602.34,601.28,4.21862373]
[1746657533905,1.25917415,602.33,601.28,4.21862373]
[1746657534105,1.25917415,602.32,601.28,4.21862373]
[1746657534304,1.25917194,602.31,601.28,4.21862373]
[1746657534510,2.25823448,602.3,601.28,4.21862373]
[1746657534711,1.25917194,602.29,601.28,4.21862373]
[1746657535010,2.25823448,602.28,601.28,4.21862373]
[1746657535214,1.25917194,602.27,601.28,4.21862373]
[1746657535510,2.25823448,602.26,601.28,4.21862373]
[1746657535706,2.25823448,602.25,601.28,4.21862373]
[1746657536011,1.25917194,602.24,601.28,4.21862373]
[1746657536205,1.25917955,602.23,601.28,4.21862373]
[1746657536408,1.25917955,602.22,601.28,4.21862373]
[1746657536610,1.25917955,602.21,601.28,4.21862373]
[1746657536804,0.28911939,602.44,601.28,4.21862373]
[1746657537408,0.33180151,602.77,601.28,4.21862373]
[1746657537609,0.28905575,602.44,601.28,4.21862373]
[1746657537913,0.33180151,602.77,601.28,4.21862373]
[1746657538210,0.28905575,602.44,601.28,4.21862373]
[1746657538506,0.30506986,602.76,601.28,4.21862373]
[1746657538706,0.28905695,602.44,601.28,4.21862373]
[1746657539011,0.33180151,602.77,601.28,4.21862373]
[1746657539211,0.30507114,602.76,601.28,4.21862373]
[1746657539408,0.28905575,602.44,601.28,4.21862373]
[1746657539608,0.30507114,602.76,601.28,4.21862373]
[1746657539904,0.28905695,602.44,601.28,4.21862373]
[1746657540105,0.33180151,602.77,601.28,4.21862373]
[1746657540413,0.28905695,602.44,601.28,4.21862373]
[1746657540811,0.33180151,602.77,601.28,4.21862373]
[1746657541011,0.28907496,602.43,601.28,4.21862373]
[1746657541312,0.30508679,602.76,601.28,4.21862373]
[1746657541512,0.28907616,602.42,601.28,4.21862373]
[1746657541814,0.33180151,602.77,601.28,4.21862373]
[1746657542007,1.25533843,602.76,601.28,4.21862373]
[1746657542210,0.28907616,602.41,601.28,4.21862373]
[1746657542410,0.99781233,602.75,601.28,4.21862373]
[1746657542812,0.28907736,602.4,601.28,4.21862373]
[1746657543009,1.56039262,602.74,601.28,4.21862373]
[1746657543214,1.54438672,602.39,601.28,4.21862373]
[1746657543411,1.25530816,602.38,601.28,4.21862373]
[1746657543612,1.25530093,602.37,601.28,4.21862373]
[1746657543812,0.28912059,602.38,601.28,4.21862373]
[1746657544013,1.25597027,602.37,601.28,4.21862373]
[1746657544817,0.28912059,602.38,601.28,4.21862373]
[1746657545615,1.25597653,602.37,601.28,4.21862373]
[1746657545815,1.25597653,602.36,601.28,4.21862373]
[1746657546016,0.28912059,602.38,601.28,4.21862373]
[1746657546316,1.25539365,602.37,601.28,4.21862373]
[1746657546516,1.25531641,602.36,601.28,4.21862373]
[1746657546817,1.25531641,602.35,601.28,4.21862373]
[1746657547017,1.25531641,602.34,601.28,4.21862373]
[1746657547219,1.25531641,602.33,601.28,4.21862373]
[1746657547416,0.99781233,602.32,601.28,4.21862373]
[1746657547913,0.99781233,602.31,601.28,4.21862373]
[1746657548216,0.28905815,602.44,601.28,4.21862373]
[1746657549418,0.33180151,602.77,601.28,4.21862373]
[1746657549821,0.28905575,602.44,601.28,4.21862373]
[1746657550119,0.33180151,602.77,601.28,4.21862373]
[1746657550319,0.28905575,602.44,601.28,4.21862373]
[1746657550620,0.33180151,602.77,601.28,4.21862373]
[1746657550816,0.28905575,602.44,601.28,4.21862373]
[1746657551222,0.33180151,602.77,601.28,4.21862373]
[1746657551423,0.28905575,602.44,601.28,4.21862373]
[1746657551722,0.33180151,602.77,601.28,4.21862373]
[1746657551922,0.28905575,602.44,601.28,4.21862373]
[1746657552222,0.33180151,602.77,601.28,4.21862373]
[1746657552522,0.28905575,602.44,601.28,4.21862373]
[1746657552818,0.33180151,602.77,601.28,4.21862373]
[1746657553018,0.28905575,602.44,601.28,4.21862373]
[1746657553323,0.33180151,602.77,601.28,4.21862373]
[1746657553724,0.28905575,602.44,601.28,4.21862373]
[1746657553924,0.33180151,602.77,601.28,4.21862373]
[1746657554222,0.28905575,602.44,601.28,4.21862373]
[1746657554524,0.33180151,602.77,601.28,4.21862373]
[1746657554724,0.28905575,602.44,601.28,4.21862373]
[1746657555020,0.33180151,602.77,601.28,4.21862373]
[1746657555326,0.28905575,602.44,601.28,4.21862373]
[1746657555727,0.33180151,602.77,601.28,4.21862373]
[1746657555928,0.28905575,602.44,601.28,4.21862373]
[1746657556129,0.33180151,602.77,601.28,4.21862373]
[1746657556429,0.28905575,602.44,601.28,4.21862373]
[1746657556729,0.33180151,602.77,601.28,4.21862373]
[1746657557529,0.28897054,602.76,601.28,4.21862373]
[1746657558431,0.33180151,602.77,601.28,4.21862373]
[1746657558730,0.28905575,602.75,601.28,4.21862373]
[1746657559934,0.9962829,602.74,601.28,4.21862373]
[1746657560634,0.9962829,602.73,601.28,4.21862373]
[1746657561037,0.9962829,602.72,601.28,4.21862373]
[1746657561430,0.9962829,602.71,601.28,4.21862373]
[1746657561737,0.9962829,602.7,601.28,4.21862373]
[1746657562136,0.9962829,602.69,601.28,4.21862373]
[1746657562943,0.9962829,602.68,601.28,4.21862373]
[1746657563338,0.9962829,602.67,601.28,4.21862373]
[1746657563635,0.9962829,602.66,601.28,4.21862373]
[1746657564039,0.9962829,602.65,601.28,4.21862373]
[1746657564639,0.9962829,602.64,601.28,4.21862373]
[1746657564840,1.28535306,602.64,601.28,4.21862373]
[1746657565141,0.9962829,602.63,601.28,4.21862373]
[1746657565640,0.9962829,602.62,601.28,4.21862373]
[1746657566244,0.9962829,602.61,601.28,4.21862373]
[1746657566440,0.28907016,602.64,601.28,4.21862373]
[1746657567441,0.33180151,602.77,601.28,4.21862373]
[1746657567741,0.28905335,602.63,601.28,4.21862373]
[1746657567941,0.30503959,602.76,601.28,4.21862373]
[1746657568245,0.28905335,602.62,601.28,4.21862373]
[1746657568540,0.30503959,602.76,601.28,4.21862373]
[1746657568749,0.33180151,602.77,601.28,4.21862373]
[1746657569044,0.28905455,602.61,601.28,4.21862373]